[Event "Titled Tuesday Blitz March 21 Early 2023"]
[White "Harsha Bharathakoti"]
[Black "Tymrakiewicz, Rafal"]
[WhiteFideId "5078776"]
[BlackFideId "1108832"]
[WhiteElo "2481"]
[BlackElo "2151"]
[Result "1-0"]
[Round "01"]
[TimeControl "180+2"]
[Date "2023.03.21"]
[WhiteClock "0:00:28"]
[BlackClock "0:00:02"]

1. Nf3 {[%clk 0:03:00]}  d5 {[%clk 0:02:57]} 2. g3 {[%clk 0:02:59]}  Nf6 {[%clk 0:02:43]} 3. Bg2 {[%clk 0:02:56]}  Bf5 {[%clk 0:02:42]} 4. O-O {[%clk 0:02:55]}  e6 {[%clk 0:02:41]} 5. c4 {[%clk 0:02:55]}  c6 {[%clk 0:02:40]} 6. b3 {[%clk 0:02:54]}  Be7 {[%clk 0:02:38]} 7. Bb2 {[%clk 0:02:53]}  O-O {[%clk 0:02:39]} 8. d3 {[%clk 0:02:52]}  h6 {[%clk 0:02:33]} 9. Nbd2 {[%clk 0:02:51]}  Bh7 {[%clk 0:02:31]} 10. Rc1 {[%clk 0:02:48]}  a5 {[%clk 0:02:29]} 11. a3 {[%clk 0:02:48]}  Nfd7 {[%clk 0:02:11]} 12. Qc2 {[%clk 0:02:45]}  Bf6 {[%clk 0:02:10]} 13. Rfe1 {[%clk 0:02:43]}  Bxb2 {[%clk 0:02:09]} 14. Qxb2 {[%clk 0:02:41]}  Qf6 {[%clk 0:02:10]} 15. d4 {[%clk 0:02:36]}  Na6 {[%clk 0:01:34]} 16. Qa1 {[%clk 0:02:30]}  a4 {[%clk 0:01:12]} 17. b4 {[%clk 0:02:27]}  Nb6 {[%clk 0:01:10]} 18. Ne5 {[%clk 0:02:25]}  Rfd8 {[%clk 0:01:06]} 19. e3 {[%clk 0:02:23]}  Nc7 {[%clk 0:00:54]} 20. h4 {[%clk 0:02:08]}  Nd7 {[%clk 0:00:40]} 21. Nef3 {[%clk 0:01:59]}  Nb6 {[%clk 0:00:39]} 22. Red1 {[%clk 0:01:56]}  Nxc4 {[%clk 0:00:36]} 23. Nxc4 {[%clk 0:01:54]}  dxc4 {[%clk 0:00:36]} 24. Rxc4 {[%clk 0:01:52]}  Be4 {[%clk 0:00:35]} 25. Ne5 {[%clk 0:01:52]}  Bxg2 {[%clk 0:00:33]} 26. Kxg2 {[%clk 0:01:53]}  Nb5 {[%clk 0:00:31]} 27. Rcc1 {[%clk 0:01:43]}  Qf5 {[%clk 0:00:30]} 28. Qb2 {[%clk 0:01:34]}  Qe4+ {[%clk 0:00:27]} 29. Kg1 {[%clk 0:01:34]}  Rd5 {[%clk 0:00:22]} 30. Nd3 {[%clk 0:01:28]}  Rh5 {[%clk 0:00:20]} 31. Nf4 {[%clk 0:01:23]}  Rf5 {[%clk 0:00:19]} 32. Rc5 {[%clk 0:01:05]}  Nc7 {[%clk 0:00:17]} 33. Rxf5 {[%clk 0:01:05]}  Qxf5 {[%clk 0:00:17]} 34. Nd3 {[%clk 0:01:04]}  Nd5 {[%clk 0:00:12]} 35. Nc5 {[%clk 0:00:51]}  Qg4 {[%clk 0:00:12]} 36. Re1 {[%clk 0:00:50]}  Ra7 {[%clk 0:00:08]} 37. Qc2 {[%clk 0:00:44]}  g5 {[%clk 0:00:06]} 38. hxg5 {[%clk 0:00:44]}  hxg5 {[%clk 0:00:07]} 39. e4 {[%clk 0:00:35]}  Nf4 {[%clk 0:00:06]} 40. Qd1 {[%clk 0:00:36]}  Qxd1 {[%clk 0:00:06]} 41. Rxd1 {[%clk 0:00:35]}  Ng6 {[%clk 0:00:04]} 42. d5 {[%clk 0:00:28]}  cxd5 {[%clk 0:00:04]} 43. exd5 {[%clk 0:00:29]}  b6 {[%clk 0:00:02]} 44. d6 {[%clk 0:00:28]}  Nf8 {[%clk 0:00:01]} 45. d7 {[%clk 0:00:29]}  Nxd7 {[%clk 0:00:02]} 46. Rxd7 {[%clk 0:00:28]} 1-0


[Site "https://www.chess.com"]

[Event "Titled Tuesday Blitz March 21 Early 2023"]
[White "Ahmadzada, Ahmad"]
[Black "Gonzalez, Francisco Silva"]
[WhiteFideId "13413007"]
[BlackFideId "1512285"]
[WhiteElo "2388"]
[BlackElo "2074"]
[Result "1-0"]
[Round "01"]
[TimeControl "180+2"]
[Date "2023.03.21"]
[WhiteClock "0:00:42"]
[BlackClock "0:01:08"]

1. e4 {[%clk 0:02:57]}  e5 {[%clk 0:02:56]} 2. Nf3 {[%clk 0:02:55]}  Nc6 {[%clk 0:02:54]} 3. Bb5 {[%clk 0:02:52]}  a6 {[%clk 0:02:54]} 4. Ba4 {[%clk 0:02:46]}  Nf6 {[%clk 0:02:54]} 5. Nc3 {[%clk 0:02:47]}  b5 {[%clk 0:02:54]} 6. Bb3 {[%clk 0:02:46]}  Bc5 {[%clk 0:02:53]} 7. d3 {[%clk 0:02:44]}  O-O {[%clk 0:02:53]} 8. a4 {[%clk 0:02:44]}  Rb8 {[%clk 0:02:50]} 9. h3 {[%clk 0:02:42]}  Re8 {[%clk 0:02:48]} 10. O-O {[%clk 0:02:41]}  h6 {[%clk 0:02:46]} 11. axb5 {[%clk 0:02:39]}  axb5 {[%clk 0:02:46]} 12. Nd5 {[%clk 0:02:40]}  d6 {[%clk 0:02:45]} 13. c3 {[%clk 0:02:39]}  Nxd5 {[%clk 0:02:43]} 14. Bxd5 {[%clk 0:02:39]}  Ne7 {[%clk 0:02:43]} 15. Bb3 {[%clk 0:02:39]}  Bb6 {[%clk 0:02:43]} 16. Be3 {[%clk 0:02:36]}  Ng6 {[%clk 0:02:43]} 17. Bxb6 {[%clk 0:02:22]}  Rxb6 {[%clk 0:02:42]} 18. Ra8 {[%clk 0:02:21]}  Qe7 {[%clk 0:02:39]} 19. d4 {[%clk 0:02:17]}  Be6 {[%clk 0:02:38]} 20. Ra7 {[%clk 0:02:10]}  Qd8 {[%clk 0:02:36]} 21. Bxe6 {[%clk 0:02:04]}  Rxe6 {[%clk 0:02:35]} 22. Qb3 {[%clk 0:02:04]}  Re8 {[%clk 0:02:33]} 23. Rfa1 {[%clk 0:02:03]}  Nf4 {[%clk 0:02:31]} 24. Kh2 {[%clk 0:01:56]}  exd4 {[%clk 0:02:27]} 25. cxd4 {[%clk 0:01:53]}  Qf6 {[%clk 0:02:24]} 26. Rxc7 {[%clk 0:01:47]}  Rxe4 {[%clk 0:02:23]} 27. Ra8+ {[%clk 0:01:45]}  Kh7 {[%clk 0:02:21]} 28. Rxf7 {[%clk 0:01:44]}  Qe6 {[%clk 0:02:19]} 29. Qxe6 {[%clk 0:01:40]}  Nxe6 {[%clk 0:02:18]} 30. Re8 {[%clk 0:01:35]}  Kg6 {[%clk 0:02:16]} 31. Ree7 {[%clk 0:01:30]}  Rf4 {[%clk 0:02:09]} 32. Rxf4 {[%clk 0:01:08]}  Nxf4 {[%clk 0:02:08]} 33. Re3 {[%clk 0:01:02]}  Kf6 {[%clk 0:02:04]} 34. g3 {[%clk 0:01:00]}  Nd5 {[%clk 0:02:04]} 35. Re2 {[%clk 0:01:00]}  Ra6 {[%clk 0:02:01]} 36. Nd2 {[%clk 0:01:00]}  Kf5 {[%clk 0:01:52]} 37. Kg2 {[%clk 0:00:58]}  Ra4 {[%clk 0:01:50]} 38. Ne4 {[%clk 0:00:56]}  Ra6 {[%clk 0:01:49]} 39. f3 {[%clk 0:00:52]}  Nb4 {[%clk 0:01:47]} 40. g4+ {[%clk 0:00:48]}  Kf4 {[%clk 0:01:25]} 41. Ng3 {[%clk 0:00:47]}  d5 {[%clk 0:01:09]} 42. Re5 {[%clk 0:00:43]}  g6 {[%clk 0:01:08]} 43. Ne2# {[%clk 0:00:42]} 1-0


[Site "https://www.chess.com"]

[Event "Titled Tuesday Blitz March 21 Early 2023"]
[White "Drygalov, Andrey"]
[Black "Baches Garcia, Guillermo"]
[WhiteFideId "24171735"]
[BlackFideId "2209764"]
[WhiteElo "2471"]
[BlackElo "2463"]
[Result "1-0"]
[Round "01"]
[TimeControl "180+2"]
[Date "2023.03.21"]
[WhiteClock "0:01:17"]
[BlackClock "0:00:15"]

1. e4 {[%clk 0:03:00]}  c5 {[%clk 0:02:59]} 2. Nf3 {[%clk 0:03:00]}  d6 {[%clk 0:02:59]} 3. d4 {[%clk 0:03:01]}  cxd4 {[%clk 0:03:00]} 4. Nxd4 {[%clk 0:03:01]}  Nf6 {[%clk 0:03:01]} 5. Nc3 {[%clk 0:03:02]}  Nc6 {[%clk 0:03:02]} 6. Bg5 {[%clk 0:03:02]}  e6 {[%clk 0:03:02]} 7. Qd2 {[%clk 0:03:02]}  h6 {[%clk 0:03:02]} 8. Bxf6 {[%clk 0:03:00]}  gxf6 {[%clk 0:03:03]} 9. O-O-O {[%clk 0:02:59]}  a6 {[%clk 0:03:03]} 10. Kb1 {[%clk 0:02:57]}  Bd7 {[%clk 0:03:04]} 11. f4 {[%clk 0:02:54]}  Qb6 {[%clk 0:03:03]} 12. Nf3 {[%clk 0:02:50]}  O-O-O {[%clk 0:03:03]} 13. g3 {[%clk 0:02:49]}  Kb8 {[%clk 0:02:59]} 14. f5 {[%clk 0:02:48]}  Rc8 {[%clk 0:02:50]} 15. Bh3 {[%clk 0:02:41]}  Na5 {[%clk 0:02:40]} 16. Qd4 {[%clk 0:02:37]}  Qxd4 {[%clk 0:02:18]} 17. Nxd4 {[%clk 0:02:36]}  Re8 {[%clk 0:02:09]} 18. Rhf1 {[%clk 0:02:28]}  Bg7 {[%clk 0:01:59]} 19. Nce2 {[%clk 0:02:24]}  Nc4 {[%clk 0:01:53]} 20. fxe6 {[%clk 0:01:34]}  fxe6 {[%clk 0:01:46]} 21. Rfe1 {[%clk 0:01:33]}  f5 {[%clk 0:01:17]} 22. Nf4 {[%clk 0:01:22]}  e5 {[%clk 0:01:03]} 23. Nh5 {[%clk 0:01:22]}  exd4 {[%clk 0:01:01]} 24. Nxg7 {[%clk 0:01:22]}  Re7 {[%clk 0:00:17]} 25. Nxf5 {[%clk 0:01:19]}  Bxf5 {[%clk 0:00:17]} 26. exf5 {[%clk 0:01:18]}  Rxe1 {[%clk 0:00:15]} 27. Rxe1 {[%clk 0:01:18]}  Ne3 {[%clk 0:00:15]} 28. c3 {[%clk 0:01:17]} 1-0


[Site "https://www.chess.com"]

[Event "Titled Tuesday Blitz March 21 Early 2023"]
[White "Jones, Gawain C B"]
[Black "Vaglio Munoz, Jaime"]
[WhiteFideId "409561"]
[BlackFideId "6500145"]
[WhiteElo "2645"]
[BlackElo "2199"]
[Result "1/2-1/2"]
[Round "01"]
[TimeControl "180+2"]
[Date "2023.03.21"]
[WhiteClock "0:01:55"]
[BlackClock "0:01:40"]

1. Nf3 {[%clk 0:03:00]}  c6 {[%clk 0:02:57]} 2. e4 {[%clk 0:02:59]}  d5 {[%clk 0:02:57]} 3. Nc3 {[%clk 0:02:59]}  dxe4 {[%clk 0:02:56]} 4. Nxe4 {[%clk 0:03:00]}  Bg4 {[%clk 0:02:55]} 5. h3 {[%clk 0:03:00]}  Bh5 {[%clk 0:02:55]} 6. Ng3 {[%clk 0:02:58]}  Bg6 {[%clk 0:02:54]} 7. Ne5 {[%clk 0:02:58]}  e6 {[%clk 0:02:53]} 8. d4 {[%clk 0:02:54]}  Bd6 {[%clk 0:02:52]} 9. Nxg6 {[%clk 0:02:54]}  hxg6 {[%clk 0:02:50]} 10. Ne4 {[%clk 0:02:55]}  Be7 {[%clk 0:02:49]} 11. Be3 {[%clk 0:02:54]}  Nd7 {[%clk 0:02:47]} 12. Qf3 {[%clk 0:02:43]}  Ngf6 {[%clk 0:02:46]} 13. O-O-O {[%clk 0:02:43]}  Qa5 {[%clk 0:02:44]} 14. Kb1 {[%clk 0:02:41]}  Qf5 {[%clk 0:02:35]} 15. Qxf5 {[%clk 0:02:39]}  gxf5 {[%clk 0:02:36]} 16. Nxf6+ {[%clk 0:02:39]}  Nxf6 {[%clk 0:02:35]} 17. c4 {[%clk 0:02:30]}  O-O-O {[%clk 0:02:34]} 18. g3 {[%clk 0:02:27]}  Ne4 {[%clk 0:02:31]} 19. Bg2 {[%clk 0:02:26]}  g5 {[%clk 0:02:28]} 20. Kc2 {[%clk 0:02:21]}  Nd6 {[%clk 0:02:13]} 21. b3 {[%clk 0:02:17]}  Bf6 {[%clk 0:02:12]} 22. Bc1 {[%clk 0:02:13]}  Ne4 {[%clk 0:02:11]} 23. Bxe4 {[%clk 0:02:12]}  fxe4 {[%clk 0:02:10]} 24. Bb2 {[%clk 0:02:12]}  Bg7 {[%clk 0:01:58]} 25. h4 {[%clk 0:02:09]}  gxh4 {[%clk 0:01:56]} 26. Rxh4 {[%clk 0:02:06]}  Rxh4 {[%clk 0:01:51]} 27. gxh4 {[%clk 0:02:07]}  Rh8 {[%clk 0:01:49]} 28. d5 {[%clk 0:01:55]}  Bxb2 {[%clk 0:01:47]} 29. Kxb2 {[%clk 0:01:56]}  exd5 {[%clk 0:01:45]} 30. cxd5 {[%clk 0:01:57]}  Rxh4 {[%clk 0:01:44]} 31. dxc6 {[%clk 0:01:57]}  bxc6 {[%clk 0:01:45]} 32. Kc3 {[%clk 0:01:55]}  Kc7 {[%clk 0:01:40]} 33. Rd2 {[%clk 0:01:55]} 1/2-1/2


[Site "https://www.chess.com"]

[Event "Titled Tuesday Blitz March 21 Early 2023"]
[White "Kukhmazov, Arsen"]
[Black "Dudzinski, Pawel"]
[WhiteFideId "24108260"]
[BlackFideId "1117890"]
[WhiteElo "2378"]
[BlackElo "2099"]
[Result "1-0"]
[Round "01"]
[TimeControl "180+2"]
[Date "2023.03.21"]
[WhiteClock "0:00:24"]
[BlackClock "0:00:10"]

1. d4 {[%clk 0:02:59]}  d5 {[%clk 0:02:59]} 2. c4 {[%clk 0:02:59]}  c6 {[%clk 0:02:59]} 3. Nf3 {[%clk 0:02:58]}  e6 {[%clk 0:02:57]} 4. Qc2 {[%clk 0:02:57]}  f5 {[%clk 0:02:55]} 5. Bf4 {[%clk 0:02:42]}  Nf6 {[%clk 0:02:53]} 6. e3 {[%clk 0:02:42]}  Be7 {[%clk 0:02:52]} 7. Bd3 {[%clk 0:02:42]}  O-O {[%clk 0:02:52]} 8. O-O {[%clk 0:02:42]}  Bd7 {[%clk 0:02:50]} 9. Nc3 {[%clk 0:02:39]}  h6 {[%clk 0:02:48]} 10. Rab1 {[%clk 0:02:38]}  Be8 {[%clk 0:02:46]} 11. b4 {[%clk 0:02:37]}  Ne4 {[%clk 0:02:36]} 12. b5 {[%clk 0:02:32]}  Nd7 {[%clk 0:02:29]} 13. bxc6 {[%clk 0:02:31]}  bxc6 {[%clk 0:02:30]} 14. Rb7 {[%clk 0:02:23]}  g5 {[%clk 0:02:20]} 15. Be5 {[%clk 0:01:49]}  g4 {[%clk 0:02:16]} 16. Nd2 {[%clk 0:01:49]}  Nxe5 {[%clk 0:02:15]} 17. Bxe4 {[%clk 0:01:45]}  dxe4 {[%clk 0:01:33]} 18. dxe5 {[%clk 0:01:46]}  Bc5 {[%clk 0:01:32]} 19. Ndxe4 {[%clk 0:01:25]}  fxe4 {[%clk 0:01:24]} 20. Qxe4 {[%clk 0:01:21]}  Rf5 {[%clk 0:01:06]} 21. Qxg4+ {[%clk 0:01:05]}  Qg5 {[%clk 0:01:05]} 22. Qxg5+ {[%clk 0:00:59]}  hxg5 {[%clk 0:01:01]} 23. Ne4 {[%clk 0:00:59]}  Rxe5 {[%clk 0:00:48]} 24. Nf6+ {[%clk 0:01:00]}  Kf8 {[%clk 0:00:48]} 25. Nh7+ {[%clk 0:00:55]}  Kg8 {[%clk 0:00:48]} 26. Nf6+ {[%clk 0:00:56]}  Kf8 {[%clk 0:00:48]} 27. Rd1 {[%clk 0:00:44]}  Bb6 {[%clk 0:00:44]} 28. Rdd7 {[%clk 0:00:39]}  Bg6 {[%clk 0:00:33]} 29. Rg7 {[%clk 0:00:28]}  Rd8 {[%clk 0:00:10]} 30. Rg8# {[%clk 0:00:24]} 1-0


[Site "https://www.chess.com"]

[Event "Titled Tuesday Blitz March 21 Early 2023"]
[White "Bilan, Danila"]
[Black "Mekhitarian, Krikor Sevag"]
[WhiteFideId "24161918"]
[BlackFideId "2107660"]
[WhiteElo "2182"]
[BlackElo "2604"]
[Result "1-0"]
[Round "01"]
[TimeControl "180+2"]
[Date "2023.03.21"]
[WhiteClock "0:00:13"]
[BlackClock "0:01:09"]

1. d4 {[%clk 0:03:00]}  Nf6 {[%clk 0:02:58]} 2. Nf3 {[%clk 0:03:00]}  g6 {[%clk 0:02:57]} 3. Bg5 {[%clk 0:03:00]}  Bg7 {[%clk 0:02:57]} 4. c3 {[%clk 0:03:00]}  O-O {[%clk 0:02:57]} 5. Nbd2 {[%clk 0:03:01]}  d5 {[%clk 0:02:52]} 6. e3 {[%clk 0:03:00]}  Nbd7 {[%clk 0:02:52]} 7. Bd3 {[%clk 0:02:55]}  Re8 {[%clk 0:02:51]} 8. O-O {[%clk 0:02:55]}  c6 {[%clk 0:02:52]} 9. e4 {[%clk 0:02:45]}  dxe4 {[%clk 0:02:51]} 10. Nxe4 {[%clk 0:02:46]}  Nxe4 {[%clk 0:02:50]} 11. Bxe4 {[%clk 0:02:46]}  Qc7 {[%clk 0:02:48]} 12. Re1 {[%clk 0:02:39]}  e5 {[%clk 0:02:39]} 13. dxe5 {[%clk 0:02:24]}  Nxe5 {[%clk 0:02:40]} 14. Nxe5 {[%clk 0:02:20]}  Bxe5 {[%clk 0:02:41]} 15. h3 {[%clk 0:02:07]}  Be6 {[%clk 0:02:39]} 16. Qf3 {[%clk 0:02:03]}  a5 {[%clk 0:02:35]} 17. Bc2 {[%clk 0:01:26]}  Bg7 {[%clk 0:02:29]} 18. Bb3 {[%clk 0:01:21]}  Bxb3 {[%clk 0:02:28]} 19. axb3 {[%clk 0:01:22]}  Qb6 {[%clk 0:02:29]} 20. b4 {[%clk 0:00:41]}  axb4 {[%clk 0:02:08]} 21. Rxa8 {[%clk 0:00:37]}  Rxa8 {[%clk 0:02:09]} 22. Re7 {[%clk 0:00:37]}  Rf8 {[%clk 0:02:10]} 23. Bf6 {[%clk 0:00:25]}  Qd8 {[%clk 0:01:45]} 24. cxb4 {[%clk 0:00:15]}  Qd6 {[%clk 0:01:33]} 25. Bxg7 {[%clk 0:00:13]}  Qxe7 {[%clk 0:01:28]} 26. Bxf8 {[%clk 0:00:13]}  Kxf8 {[%clk 0:01:27]} 27. Qc3 {[%clk 0:00:13]}  Kg8 {[%clk 0:01:27]} 28. g3 {[%clk 0:00:13]}  g5 {[%clk 0:01:26]} 29. Qd4 {[%clk 0:00:12]}  h6 {[%clk 0:01:25]} 30. Kg2 {[%clk 0:00:13]}  Qe6 {[%clk 0:01:23]} 31. Qd8+ {[%clk 0:00:13]}  Kh7 {[%clk 0:01:23]} 32. Qd3+ {[%clk 0:00:14]}  Kg7 {[%clk 0:01:23]} 33. Qd4+ {[%clk 0:00:14]}  Kg6 {[%clk 0:01:24]} 34. Qd3+ {[%clk 0:00:13]}  Qf5 {[%clk 0:01:24]} 35. Qd6+ {[%clk 0:00:13]}  f6 {[%clk 0:01:22]} 36. Qe7 {[%clk 0:00:14]}  Qd5+ {[%clk 0:01:22]} 37. Kh2 {[%clk 0:00:14]}  b5 {[%clk 0:01:09]} 38. Qe8+ {[%clk 0:00:14]}  Kf5 {[%clk 0:01:10]} 39. g4+ {[%clk 0:00:13]}  Kf4 {[%clk 0:01:09]} 40. Qe3# {[%clk 0:00:13]} 1-0


[Site "https://www.chess.com"]

[Event "Titled Tuesday Blitz March 21 Early 2023"]
[White "Gukesh D"]
[Black "Vivas Zamora, Fabian Ernesto"]
[WhiteFideId "46616543"]
[BlackFideId "3902480"]
[WhiteElo "2612"]
[BlackElo "2262"]
[Result "1-0"]
[Round "01"]
[TimeControl "180+2"]
[Date "2023.03.21"]
[WhiteClock "0:00:57"]
[BlackClock "0:00:01"]

1. d4 {[%clk 0:03:00]}  Nf6 {[%clk 0:02:59]} 2. Nf3 {[%clk 0:03:01]}  g6 {[%clk 0:02:58]} 3. Nc3 {[%clk 0:03:00]}  d5 {[%clk 0:02:57]} 4. Bf4 {[%clk 0:03:00]}  Bg7 {[%clk 0:02:57]} 5. Nb5 {[%clk 0:03:01]}  Na6 {[%clk 0:02:56]} 6. e3 {[%clk 0:03:01]}  O-O {[%clk 0:02:53]} 7. h3 {[%clk 0:03:01]}  Ne4 {[%clk 0:02:19]} 8. Nd2 {[%clk 0:02:34]}  Nxd2 {[%clk 0:01:42]} 9. Qxd2 {[%clk 0:02:34]}  c6 {[%clk 0:01:37]} 10. Nc3 {[%clk 0:02:33]}  f6 {[%clk 0:01:36]} 11. Be2 {[%clk 0:02:26]}  e5 {[%clk 0:01:36]} 12. Bg3 {[%clk 0:02:26]}  Nc7 {[%clk 0:01:27]} 13. h4 {[%clk 0:02:02]}  Ne6 {[%clk 0:00:57]} 14. h5 {[%clk 0:01:56]}  exd4 {[%clk 0:00:46]} 15. exd4 {[%clk 0:01:57]}  f5 {[%clk 0:00:40]} 16. hxg6 {[%clk 0:01:50]}  hxg6 {[%clk 0:00:41]} 17. Be5 {[%clk 0:01:42]}  Bxe5 {[%clk 0:00:38]} 18. dxe5 {[%clk 0:01:43]}  Qg5 {[%clk 0:00:34]} 19. O-O-O {[%clk 0:01:32]}  Qxd2+ {[%clk 0:00:30]} 20. Kxd2 {[%clk 0:01:33]}  d4 {[%clk 0:00:19]} 21. Nb1 {[%clk 0:01:32]}  Kg7 {[%clk 0:00:14]} 22. a4 {[%clk 0:01:23]}  b6 {[%clk 0:00:14]} 23. Na3 {[%clk 0:01:22]}  Re8 {[%clk 0:00:09]} 24. Nc4 {[%clk 0:01:21]}  Re7 {[%clk 0:00:07]} 25. Bf3 {[%clk 0:01:18]}  Ba6 {[%clk 0:00:04]} 26. Nd6 {[%clk 0:01:17]}  Rd8 {[%clk 0:00:02]} 27. Bxc6 {[%clk 0:01:13]}  Nf4 {[%clk 0:00:02]} 28. Rde1 {[%clk 0:01:09]}  Ne2 {[%clk 0:00:01]} 29. Nb5 {[%clk 0:00:58]}  Bxb5 {[%clk 0:00:01]} 30. axb5 {[%clk 0:00:57]}  Rxe5 {[%clk 0:00:01]} 31. Rxe2 {[%clk 0:00:57]} 1-0


[Site "https://www.chess.com"]

[Event "Titled Tuesday Blitz March 21 Early 2023"]
[White "Spitzl, Vinzent"]
[Black "Aditya Mittal"]
[WhiteFideId "12901253"]
[BlackFideId "35042025"]
[WhiteElo "2225"]
[BlackElo "2396"]
[Result "1/2-1/2"]
[Round "01"]
[TimeControl "180+2"]
[Date "2023.03.21"]
[WhiteClock "0:00:16"]
[BlackClock "0:00:05"]

1. e4 {[%clk 0:02:57]}  e5 {[%clk 0:02:59]} 2. Nf3 {[%clk 0:02:56]}  Nc6 {[%clk 0:03:00]} 3. Bb5 {[%clk 0:02:55]}  Nf6 {[%clk 0:03:00]} 4. O-O {[%clk 0:02:54]}  Nxe4 {[%clk 0:03:00]} 5. Re1 {[%clk 0:02:53]}  Nd6 {[%clk 0:03:00]} 6. Nxe5 {[%clk 0:02:48]}  Be7 {[%clk 0:03:00]} 7. Bf1 {[%clk 0:02:47]}  Nxe5 {[%clk 0:02:51]} 8. Rxe5 {[%clk 0:02:46]}  O-O {[%clk 0:02:52]} 9. d4 {[%clk 0:02:39]}  Bf6 {[%clk 0:02:52]} 10. Re1 {[%clk 0:02:39]}  Re8 {[%clk 0:02:51]} 11. c3 {[%clk 0:02:37]}  b6 {[%clk 0:02:31]} 12. Bf4 {[%clk 0:02:36]}  Bb7 {[%clk 0:02:17]} 13. Nd2 {[%clk 0:02:32]}  Rxe1 {[%clk 0:02:10]} 14. Qxe1 {[%clk 0:02:31]}  Qf8 {[%clk 0:02:11]} 15. Qe3 {[%clk 0:02:17]}  g6 {[%clk 0:01:53]} 16. Qh3 {[%clk 0:02:04]}  Qe7 {[%clk 0:01:48]} 17. Qe3 {[%clk 0:01:57]}  Qxe3 {[%clk 0:01:40]} 18. Bxe3 {[%clk 0:01:56]}  Nf5 {[%clk 0:01:35]} 19. Bf4 {[%clk 0:01:56]}  d6 {[%clk 0:01:35]} 20. Re1 {[%clk 0:01:53]}  g5 {[%clk 0:01:35]} 21. Bg3 {[%clk 0:01:48]}  h5 {[%clk 0:01:31]} 22. Bd3 {[%clk 0:01:47]}  Nxg3 {[%clk 0:01:22]} 23. hxg3 {[%clk 0:01:48]}  d5 {[%clk 0:01:20]} 24. Nf3 {[%clk 0:01:41]}  g4 {[%clk 0:01:12]} 25. Ne5 {[%clk 0:01:39]}  Re8 {[%clk 0:01:13]} 26. Kf1 {[%clk 0:01:37]}  c5 {[%clk 0:01:00]} 27. Bb5 {[%clk 0:01:22]}  Re7 {[%clk 0:00:56]} 28. f3 {[%clk 0:01:04]}  cxd4 {[%clk 0:00:35]} 29. cxd4 {[%clk 0:01:01]}  gxf3 {[%clk 0:00:34]} 30. gxf3 {[%clk 0:01:00]}  Rc7 {[%clk 0:00:35]} 31. Bd3 {[%clk 0:00:57]}  Kg7 {[%clk 0:00:34]} 32. Ke2 {[%clk 0:00:49]}  Re7 {[%clk 0:00:18]} 33. Kd2 {[%clk 0:00:48]}  Bc8 {[%clk 0:00:18]} 34. f4 {[%clk 0:00:45]}  Bg4 {[%clk 0:00:10]} 35. Nc6 {[%clk 0:00:34]}  Rxe1 {[%clk 0:00:07]} 36. Kxe1 {[%clk 0:00:34]}  a5 {[%clk 0:00:05]} 37. Ne5 {[%clk 0:00:32]}  Be6 {[%clk 0:00:04]} 38. Kf2 {[%clk 0:00:22]}  Be7 {[%clk 0:00:05]} 39. Ke3 {[%clk 0:00:22]}  f6 {[%clk 0:00:05]} 40. Nc6 {[%clk 0:00:19]}  Bd6 {[%clk 0:00:05]} 41. a3 {[%clk 0:00:16]}  Bd7 {[%clk 0:00:05]} 42. Na7 {[%clk 0:00:16]}  Kf7 {[%clk 0:00:03]} 43. Nb5 {[%clk 0:00:17]}  Bxb5 {[%clk 0:00:03]} 44. Bxb5 {[%clk 0:00:17]}  Ke6 {[%clk 0:00:03]} 45. Be2 {[%clk 0:00:17]}  f5 {[%clk 0:00:02]} 46. Bxh5 {[%clk 0:00:17]}  Be7 {[%clk 0:00:03]} 47. g4 {[%clk 0:00:16]}  fxg4 {[%clk 0:00:03]} 48. Bxg4+ {[%clk 0:00:17]}  Kd6 {[%clk 0:00:03]} 49. a4 {[%clk 0:00:14]}  Bf6 {[%clk 0:00:04]} 50. b3 {[%clk 0:00:14]}  Bg7 {[%clk 0:00:05]} 51. Bf3 {[%clk 0:00:15]}  Bf6 {[%clk 0:00:05]} 52. Bg2 {[%clk 0:00:15]}  Bg7 {[%clk 0:00:06]} 53. Bf3 {[%clk 0:00:15]}  Bf6 {[%clk 0:00:07]} 54. Bg2 {[%clk 0:00:16]}  Bg7 {[%clk 0:00:04]} 55. Bh3 {[%clk 0:00:15]}  Bh6 {[%clk 0:00:04]} 56. Bg2 {[%clk 0:00:15]}  Ke6 {[%clk 0:00:04]} 57. Bf3 {[%clk 0:00:15]}  Kd6 {[%clk 0:00:03]} 58. Bg2 {[%clk 0:00:15]}  Ke6 {[%clk 0:00:04]} 59. Bf3 {[%clk 0:00:16]}  Kd6 {[%clk 0:00:05]} 60. Bg2 {[%clk 0:00:16]} 1/2-1/2


[Site "https://www.chess.com"]

[Event "Titled Tuesday Blitz March 21 Early 2023"]
[White "Kubatko, Ivan"]
[Black "Mikhailovsky, Vladimir"]
[WhiteFideId "24111473"]
[BlackFideId "34105414"]
[WhiteElo "2285"]
[BlackElo "2293"]
[Result "0-1"]
[Round "01"]
[TimeControl "180+2"]
[Date "2023.03.21"]
[WhiteClock "0:00:10"]
[BlackClock "0:00:33"]

1. e4 {[%clk 0:02:59]}  Nf6 {[%clk 0:02:47]} 2. e5 {[%clk 0:02:59]}  Nd5 {[%clk 0:02:44]} 3. d4 {[%clk 0:02:59]}  d6 {[%clk 0:02:40]} 4. c4 {[%clk 0:03:00]}  Nb6 {[%clk 0:02:40]} 5. exd6 {[%clk 0:03:00]}  exd6 {[%clk 0:02:40]} 6. Nc3 {[%clk 0:03:00]}  Be7 {[%clk 0:02:39]} 7. Nf3 {[%clk 0:02:59]}  O-O {[%clk 0:02:39]} 8. Be2 {[%clk 0:03:00]}  Nc6 {[%clk 0:02:38]} 9. O-O {[%clk 0:02:59]}  Bf5 {[%clk 0:02:38]} 10. d5 {[%clk 0:02:40]}  Ne5 {[%clk 0:02:32]} 11. Nxe5 {[%clk 0:02:36]}  dxe5 {[%clk 0:02:33]} 12. Be3 {[%clk 0:02:35]}  Bg5 {[%clk 0:02:24]} 13. c5 {[%clk 0:02:30]}  Nd7 {[%clk 0:02:20]} 14. c6 {[%clk 0:02:19]}  bxc6 {[%clk 0:02:10]} 15. dxc6 {[%clk 0:02:17]}  Nb6 {[%clk 0:02:03]} 16. Bc5 {[%clk 0:02:01]}  Re8 {[%clk 0:01:57]} 17. Qxd8 {[%clk 0:01:43]}  Raxd8 {[%clk 0:01:57]} 18. Nb5 {[%clk 0:01:43]}  Re6 {[%clk 0:01:46]} 19. Nxa7 {[%clk 0:01:06]}  Na4 {[%clk 0:01:16]} 20. Be3 {[%clk 0:01:01]}  Bxe3 {[%clk 0:01:05]} 21. fxe3 {[%clk 0:01:02]}  Be4 {[%clk 0:01:06]} 22. Bc4 {[%clk 0:00:56]}  Rf6 {[%clk 0:01:00]} 23. Rfd1 {[%clk 0:00:45]}  Ra8 {[%clk 0:00:54]} 24. b3 {[%clk 0:00:42]}  Nb2 {[%clk 0:00:44]} 25. Rd7 {[%clk 0:00:39]}  Nxc4 {[%clk 0:00:44]} 26. bxc4 {[%clk 0:00:39]}  Bxc6 {[%clk 0:00:42]} 27. Rxc7 {[%clk 0:00:40]}  Be4 {[%clk 0:00:41]} 28. Nb5 {[%clk 0:00:29]}  h5 {[%clk 0:00:37]} 29. a3 {[%clk 0:00:28]}  Bd3 {[%clk 0:00:35]} 30. Rd1 {[%clk 0:00:23]}  e4 {[%clk 0:00:33]} 31. Ra1 {[%clk 0:00:15]}  Ra4 {[%clk 0:00:33]} 32. Nc3 {[%clk 0:00:11]}  Rxa3 {[%clk 0:00:33]} 33. Rxa3 {[%clk 0:00:10]}  Rf1# {[%clk 0:00:33]} 0-1


[Site "https://www.chess.com"]